bitfinex-derivatives/quotes_ETHF0:USTF0_20250726
["timestamp","ask_amount","ask_price","bid_price","bid_amount"]
[1753518188654,8.17454576,3755.9,3755.8,0.19702597]
[1753518190454,8.44389611,3755.9,3755.8,0.19702597]
[1753518194760,8.45375366,3755.9,3755.8,0.19702597]
[1753518195157,9.8683103,3755.9,3755.8,0.19702597]
[1753518196063,8.45375366,3755.9,3755.8,0.19702597]
[1753518198663,8.45375366,3755.9,3755.8,1.26592597]
[1753518199769,9.88952785,3755.9,3755.8,2.97982597]
[1753518201267,1.58305366,3755.9,3755.8,3.56222597]
[1753518203266,1.30384576,3755.9,3755.8,3.56222597]
[1753518205864,3.2078,3756.3,3755.8,8.56222597]
[1753518206062,0.53232,3756.2,3756.1,1.4755]
[1753518206263,3.7401,3756.3,3756.1,3.3318]
[1753518206464,3.7401,3756.3,3756.2,3.3318]
[1753518208171,3.98167825,3756.3,3756.2,3.3318]
[1753518208866,0.5323,3756.3,3756.2,3.3318]
[1753518209269,0.80234752,3756.3,3756.2,3.3318]
[1753518209573,4.46434644,3756.3,3756.2,3.3318]
[1753518209773,4.1943,3756.3,3756.2,3.3318]
[1753518209968,4.46434268,3756.3,3756.2,3.3318]
[1753518210273,4.46430461,3756.3,3756.2,3.3318]
[1753518210467,4.1943,3756.3,3756.2,3.3318]
[1753518210669,2.0731,3756.3,3756.2,3.3318]
[1753518210870,0.6254,3756.5,3756.2,1.4755]
[1753518211171,0.6254,3756.5,3756.0,3.2078]
[1753518211172,2.71926,3756.5,3756.4,3.2524]
[1753518211376,4.40550973,3756.5,3756.4,3.2524]
[1753518212369,4.40546848,3756.5,3756.4,3.2524]
[1753518214073,4.13556,3756.5,3756.4,3.2524]
[1753518220180,4.90407934,3756.5,3756.4,3.2524]
[1753518229087,5.17823091,3756.5,3756.4,3.2524]
[1753518230486,5.17823091,3756.5,3756.4,2.6416]
[1753518230688,1.94859,3756.3,3756.2,1.0231]
[1753518230890,4.90410934,3756.3,3756.2,0.4227]
[1753518231089,4.90410934,3756.3,3756.2,0.9919]
[1753518231389,4.90410934,3756.3,3756.2,1.6342]
[1753518231590,4.90410934,3756.3,3756.2,3.2342]
[1753518239089,2.4644527,3756.3,3756.2,3.2342]
[1753518239591,5.1767527,3756.3,3756.2,3.2342]
[1753518243494,3.99993,3756.0,3755.9,2.5856]
[1753518243696,4.76844934,3756.0,3755.9,2.5856]
[1753518244097,4.76844934,3756.0,3755.9,3.1229]
[1753518244294,4.76844934,3756.0,3755.9,0.9744]
[1753518244501,4.76844934,3756.0,3755.8,0.19702597]
[1753518244502,3.99995,3755.9,3755.8,0.19702597]
[1753518244686,4.76846934,3755.9,3755.8,0.19702597]
[1753518244897,4.76846934,3755.9,3755.8,1.17142597]
[1753518245990,4.76846934,3755.9,3755.8,1.76992597]
[1753518247396,4.76846934,3755.9,3755.8,1.17142597]
[1753518247597,5.0410167,3755.9,3755.8,1.17142597]
[1753518248696,5.0410167,3755.9,3755.8,0.61762597]
[1753518250197,4.76846934,3755.9,3755.8,0.19702597]
[1753518250996,5.04086627,3755.9,3755.8,0.19702597]
[1753518251894,5.03718116,3755.9,3755.8,0.19702597]
[1753518253598,5.03718116,3755.9,3755.8,3.31992597]
[1753518253793,1.30086934,3755.9,3755.8,3.31992597]
[1753518254298,3.93536934,3755.9,3755.8,3.31992597]
[1753518254900,3.30786934,3755.9,3755.8,3.31992597]
[1753518256197,2.68006934,3755.9,3755.8,3.31992597]
[1753518257602,4.76846934,3755.9,3755.8,3.31992597]
[1753518263907,4.76846934,3755.9,3755.8,1.17142597]
[1753518266105,4.76846934,3755.9,3755.8,0.61762597]
[1753518266310,4.76846934,3755.9,3755.8,0.19702597]
[1753518267108,5.03260711,3755.9,3755.8,0.19702597]
[1753518267509,21.61340711,3755.9,3755.8,0.19702597]
[1753518271512,23.04649828,3755.9,3755.8,0.19702597]
[1753518272212,21.61340711,3755.9,3755.8,0.19702597]
[1753518273113,21.62984144,3755.9,3755.8,0.19702597]
[1753518277927,21.62984144,3755.9,3755.5,0.531]
[1753518277928,0.53242,3755.4,3755.3,0.531]
[1753518278132,17.6135921,3755.4,3755.3,3.0492]
[1753518278332,18.38211144,3755.4,3755.3,3.0492]
[1753518278933,18.38211144,3755.4,3755.3,2.4997]
[1753518279134,18.38211144,3755.4,3755.3,0.9238]
[1753518280132,18.38211144,3755.4,3755.3,1.5384]
[1753518280337,18.38211144,3755.4,3755.3,3.0492]
[1753518281237,5.02311144,3755.4,3755.3,3.0492]
[1753518281436,18.37611144,3755.4,3755.3,3.0492]
[1753518282238,5.02311144,3755.4,3755.3,3.0492]
[1753518282627,18.37411144,3755.4,3755.3,3.0492]
[1753518282831,5.02311144,3755.4,3755.3,3.0492]
[1753518283032,18.37411144,3755.4,3755.3,3.0492]
[1753518283637,5.02311144,3755.4,3755.3,3.0492]
[1753518283838,15.74311144,3755.4,3755.3,3.0492]
[1753518284640,15.74311144,3755.4,3755.0,0.9238]
[1753518284641,3.97406,3755.1,3755.0,0.9238]
[1753518284938,5.02315144,3755.1,3755.0,1.5384]
[1753518285137,5.02315144,3755.1,3755.0,2.5041]
[1753518285640,0.76851934,3755.1,3755.0,3.0492]
[1753518285842,4.74257934,3755.1,3755.0,3.0492]
[1753518286438,5.03137787,3755.1,3755.0,3.0492]
[1753518287537,1.58977787,3755.1,3755.0,3.0492]
[1753518287741,1.30097934,3755.1,3755.0,3.0492]
[1753518294134,1.30097934,3755.1,3755.0,11.257]
[1753518295039,0.76851934,3755.1,3755.0,11.257]
[1753518295239,1.30097934,3755.1,3755.0,11.257]
[1753518298437,0.76851934,3755.1,3755.0,11.78947]
[1753518298638,0.53244,3755.3,3755.2,1.3541]
[1753518298840,1.31224331,3755.3,3755.2,3.026]
[1753518299246,0.77980331,3755.3,3755.2,3.55845]
[1753518299546,1.31223331,3755.3,3755.2,3.026]
[1753518300145,0.77980331,3755.3,3755.2,3.55845]
[1753518300347,0.77980331,3755.3,3755.2,3.026]
[1753518300549,1.31223331,3755.3,3755.2,3.026]
[1753518301249,0.77980331,3755.3,3755.2,3.55845]
[1753518302242,1.9543,3756.1,3755.3,1.115]
[1753518302441,7.63735059,3757.9,3756.4,0.932]
[1753518302442,0.7825,3756.5,3756.4,0.932]
[1753518302647,1.04884815,3756.5,3756.4,5.2548]
[1753518302848,0.7825,3756.5,3756.4,5.2548]
[1753518303050,1.72176,3756.5,3756.4,5.2548]
[1753518303348,3.84906,3756.5,3756.4,5.2548]
[1753518305044,0.53226,3756.5,3756.4,5.2548]
[1753518305455,1.31476,3756.5,3756.4,5.2548]
[1753518305754,3.84906,3756.5,3756.4,5.2548]
[1753518306752,0.53226,3756.6,3756.4,4.1398]
[1753518306952,2.48651,3756.9,3756.8,2.047]
[1753518307149,3.84901,3756.9,3756.8,2.047]
[1753518314356,0.77061109,3756.9,3756.8,10.2548]
[1753518314555,0.7825,3757.2,3757.1,0.932]
[1753518314753,3.13184876,3757.2,3757.1,2.047]
[1753518315059,2.54534876,3757.2,3757.1,2.047]
[1753518315559,3.13184876,3757.2,3757.1,2.047]
[1753518315859,3.66400876,3757.2,3757.1,2.047]
[1753518316160,4.61950876,3757.2,3757.1,2.047]
[1753518316959,0.2,3757.9,3757.8,1.86828]
[1753518317155,2.02099266,3758.6,3758.1,0.7939]
[1753518317349,0.5865,3758.5,3758.4,1.32589]
[1753518317562,0.5865,3758.5,3758.4,5.59829]
[1753518319049,0.5865,3758.5,3758.4,5.86706955]
[1753518319559,1.972,3758.8,3758.7,0.932]
[1753518319760,0.53194,3758.8,3758.7,1.8585]
[1753518320059,3.84874,3758.8,3758.7,1.4543]
[1753518321561,3.84874,3758.8,3758.7,0.932]
[1753518321764,3.3168,3758.8,3758.7,1.4543]
[1753518323058,3.84874,3758.8,3758.4,3.47657955]
[1753518323258,1.3625,3758.5,3758.4,4.94056955]
[1753518323463,3.3168,3758.5,3758.4,4.94056955]
[1753518323864,3.3168,3758.5,3758.4,5.46286955]
[1753518324064,3.3168,3758.5,3758.4,5.86706955]
[1753518324858,1.3678,3758.8,3758.4,5.86706955]
[1753518325060,2.7315,3758.7,3758.6,0.932]
[1753518325253,3.3168,3758.7,3758.6,0.932]
[1753518325453,3.3168,3758.7,3758.4,3.47657955]
[1753518325454,1.9543,3758.6,3758.4,4.00856955]
[1753518325658,3.84878,3758.5,3758.4,3.2078]
[1753518325966,3.3168,3758.5,3758.4,3.2078]
[1753518326359,3.84878,3758.5,3758.4,3.2078]
[1753518329365,0.6045,3759.3,3759.2,2.39038]
[1753518329664,0.018,3759.3,3759.2,2.39038]
[1753518329860,0.5865,3759.6,3759.5,1.51154]
[1753518330060,0.5865,3759.6,3759.5,5.71204]
[1753518330262,0.7825,3759.8,3759.7,0.53181]
[1753518330466,2.18575431,3759.8,3759.7,2.50421]
[1753518331470,1.40325431,3759.8,3759.7,2.50421]
[1753518332368,3.02615431,3759.8,3759.7,2.50421]
[1753518332568,4.18995431,3759.8,3759.7,2.50421]
[1753518333261,1.40325431,3759.8,3759.7,2.50421]
[1753518334270,0.6489,3759.8,3759.7,2.50421]
[1753518334663,0.2,3759.9,3759.8,1.51149]
[1753518334865,0.2,3759.9,3759.8,2.50419]
[1753518335164,0.8489,3759.9,3759.8,2.50419]
[1753518336273,3.6356,3759.9,3759.8,2.08009]
[1753518336968,3.6356,3759.9,3759.8,2.50419]
[1753518337673,0.2,3759.9,3759.8,2.50419]
[1753518338470,0.6489,3760.1,3760.0,1.51147]
[1753518338671,0.6489,3760.1,3760.0,5.71197]
[1753518339263,1.4763,3760.1,3760.0,5.71197]
[1753518339467,3.4356,3760.1,3760.0,5.71197]
[1753518339668,3.4356,3760.1,3760.0,5.28787]
[1753518339863,1.40288837,3760.1,3760.0,5.71197]
[1753518340068,0.6489,3760.1,3760.0,5.71197]
[1753518340268,2.9007,3760.1,3760.0,5.71197]
[1753518340463,4.18969369,3760.1,3760.0,5.71197]
[1753518340679,3.4356,3760.1,3760.0,5.71197]
[1753518340872,2.8067,3760.1,3760.0,5.71197]
[1753518341173,3.56096751,3760.1,3760.0,5.71197]
[1753518341774,0.6489,3760.1,3760.0,5.71197]
[1753518342370,4.19021697,3760.1,3760.0,5.71197]
[1753518342772,4.19021697,3760.1,3760.0,5.28787]
[1753518343273,4.19021697,3760.1,3760.0,4.16097]
[1753518343477,4.19021697,3760.1,3760.0,3.73957]
[1753518343779,4.19021697,3760.1,3760.0,4.18077]
[1753518344076,4.19021697,3760.1,3760.0,4.70737]
[1753518344272,4.19021697,3760.1,3760.0,5.25617]
[1753518344672,4.19021697,3760.1,3760.0,5.28787]
[1753518346873,3.4356,3760.7,3760.6,0.95308]
[1753518347175,3.4356,3760.7,3760.6,4.16088]
[1753518347370,2.8067,3760.7,3760.6,5.28778]
[1753518347573,3.4356,3760.7,3760.6,5.28778]
[1753518347971,3.4356,3760.7,3760.6,0.53168]
[1753518348172,4.87129266,3760.7,3760.6,0.53168]
[1753518348472,3.4356,3760.7,3760.6,0.53168]
[1753518349775,3.96727,3760.7,3760.6,0.53168]
[1753518350675,1.89397,3760.7,3760.6,0.53168]
[1753518350877,1.89397,3760.7,3760.5,0.53169]
[1753518351371,1.89397,3760.7,3760.4,0.5317]
[1753518351576,1.3623,3760.5,3760.4,0.5317]
[1753518351875,3.4356,3760.3,3760.2,3.73954]
[1753518352078,3.4356,3760.3,3760.2,0.53174]
[1753518352373,1.3623,3760.3,3759.8,3.2078]
[1753518352578,1.3623,3760.3,3760.2,0.53174]
[1753518353077,3.4356,3760.3,3760.2,0.53174]
[1753518353573,1.89403,3760.3,3760.1,0.53175]
[1753518353878,3.4356,3760.2,3760.1,0.53175]
[1753518354377,2.0733,3760.1,3759.8,3.2276]
[1753518354574,1.3623,3760.0,3759.9,0.53177]
[1753518354775,3.96737,3760.0,3759.9,0.53177]
[1753518355180,3.4356,3760.0,3759.9,0.53177]
[1753518355682,3.96737,3760.0,3759.8,3.73959]
[1753518355982,3.96737,3760.0,3759.9,0.53178]
[1753518356177,1.3623,3759.5,3759.4,3.2205]
[1753518356376,3.96744,3759.5,3759.4,3.2205]
[1753518356977,3.4356,3759.5,3759.4,3.6419]
[1753518357282,3.4356,3759.5,3759.4,4.17375]
[1753518357482,3.96744,3759.5,3759.4,3.6419]
[1753518357781,3.96744,3759.5,3759.4,0.4341]
[1753518358883,4.70666814,3759.5,3759.4,0.4341]
[1753518359584,1.89415,3759.4,3759.3,0.5393]
[1753518359887,4.70667814,3759.4,3759.3,0.9734]
[1753518360282,2.45667814,3759.4,3759.3,0.9734]
[1753518360485,3.84427814,3759.4,3759.3,1.5007]
[1753518360679,3.84427814,3759.4,3759.0,4.4234]
[1753518360680,2.0396,3759.3,3759.0,4.4234]
[1753518360983,3.95909,3759.1,3759.0,5.3486]
[1753518362484,3.95909,3759.1,3759.0,4.133]
[1753518362783,3.95909,3759.1,3759.0,3.2078]
[1753518363781,0.53196,3758.7,3758.6,3.2078]
[1753518363986,3.95916,3758.7,3758.6,3.2078]
[1753518365381,3.4272,3758.7,3758.6,3.2078]
[1753518365780,3.4272,3758.7,3758.6,3.6057]
[1753518365987,3.4272,3758.7,3758.6,5.3486]
[1753518366175,3.95915,3758.7,3758.6,5.3486]
[1753518368674,3.4272,3758.7,3758.6,5.7517]
[1753518368880,0.6066,3758.9,3758.8,3.1891]
[1753518369083,0.6066,3758.9,3758.8,3.72104]
[1753518369281,0.9605,3759.2,3759.1,1.46229]
[1753518369581,3.95908,3759.2,3759.1,2.5439]
[1753518369882,3.4272,3758.7,3758.6,6.92886]
[1753518372485,3.4272,3758.7,3758.6,6.28366]
[1753518372681,3.95915,3758.7,3758.6,3.2078]
[1753518374184,3.95915,3758.7,3758.6,3.6057]
[1753518374185,3.4272,3758.7,3758.6,3.6057]
[1753518374386,3.4272,3758.7,3758.6,5.7517]
[1753518374684,1.86,3758.9,3758.8,3.1891]
[1753518374887,2.8205,3759.2,3759.1,1.86019]
[1753518375077,0.6066,3759.2,3759.1,6.92879]
[1753518375283,3.4272,3759.5,3759.4,3.72095]
[1753518375786,3.4272,3759.9,3759.8,1.3283]
[1753518376089,4.16363246,3759.9,3759.8,3.0757]
[1753518376990,4.16363246,3759.9,3759.8,1.3633]
[1753518377185,0.4271,3759.6,3759.5,3.2078]
[1753518377491,3.4272,3759.6,3759.5,4.13753]
[1753518377691,3.4272,3759.6,3759.5,5.88043]
[1753518378190,3.4272,3759.6,3759.5,6.92873]
[1753518378591,22.983,3760.3,3759.8,3.72089]
[1753518378592,3.4272,3759.9,3759.8,3.72089]
[1753518378890,1.3876,3759.7,3759.6,0.53182]
[1753518379090,4.1639428,3759.7,3759.6,0.53182]
[1753518379288,4.1639428,3759.7,3759.6,0.92972]
[1753518379586,3.4272,3759.7,3759.6,3.72092]
[1753518380387,4.1643143,3759.7,3759.6,3.07572]
[1753518380587,4.1643143,3759.7,3759.6,0.92972]
[1753518380786,4.1643143,3759.7,3759.6,0.53182]
[1753518380990,3.0223,3759.6,3759.5,3.73963]
[1753518381181,1.433,3759.5,3759.3,0.53186]
[1753518381386,3.4272,3759.4,3759.3,0.9252]
[1753518381581,3.4272,3759.4,3759.3,1.3708]
[1753518381790,3.4272,3759.4,3759.3,1.90267]
[1753518382488,1.4386,3759.4,3759.3,3.72847]
[1753518382891,0.6066,3759.4,3759.3,3.72847]
[1753518383286,1.0337,3759.4,3759.3,3.72847]
[1753518383484,3.4272,3759.4,3759.3,3.72847]
[1753518383887,2.2139,3759.7,3759.6,1.3283]
[1753518384189,4.16493754,3759.7,3759.6,3.08322]
[1753518386389,3.4272,3759.7,3759.6,3.08322]
[1753518387696,3.95901,3759.7,3759.5,3.73963]
[1753518387900,1.3876,3759.7,3759.6,0.53182]
[1753518388699,3.4272,3759.7,3759.6,0.53182]
[1753518389400,3.4272,3759.7,3759.6,1.90262]
[1753518389594,3.4272,3759.7,3759.6,3.08322]
[1753518390798,1.91941,3759.7,3759.5,0.53183]
[1753518390996,1.91941,3759.7,3759.3,1.2242]
[1753518390997,1.3876,3759.7,3759.6,3.29012]
[1753518391202,1.3885,3760.2,3760.1,3.72895]
[1753518391398,2.12662432,3760.2,3760.1,3.1972]
[1753518391595,4.68886432,3760.2,3759.9,0.53177]
[1753518391791,2.12662432,3760.1,3760.0,0.4072]
[1753518391994,3.419,3760.1,3760.0,0.4072]
[1753518392193,4.15707972,3760.1,3760.0,0.93897]
[1753518392496,3.419,3760.1,3760.0,0.93897]
[1753518392896,3.419,3760.1,3760.0,3.72897]
[1753518393494,3.419,3760.1,3760.0,3.08797]
[1753518394601,3.419,3760.1,3760.0,1.46667]
[1753518395102,3.419,3760.1,3760.0,3.08797]
[1753518396406,3.419,3760.1,3760.0,2.5562]
[1753518396605,3.419,3760.1,3760.0,3.08797]
[1753518396903,3.419,3760.1,3760.0,2.5562]
[1753518397103,3.419,3760.1,3760.0,3.72897]
[1753518401907,0.6151,3760.1,3760.0,3.72897]
[1753518402100,0.6179,3760.3,3760.0,3.1972]
[1753518402405,2.0787,3760.3,3760.2,6.93674]
[1753518402602,1.4608,3760.3,3760.2,6.93674]
[1753518402907,1.4126,3760.5,3760.4,3.72891]
[1753518403296,3.419,3760.5,3760.4,3.72891]
[1753518406805,2.8011,3760.5,3760.4,3.72891]
[1753518407407,1.041,3760.5,3760.4,3.72891]
[1753518407808,0.6151,3760.5,3760.4,3.72891]
[1753518408008,2.4503,3761.0,3760.9,3.72884]
[1753518408208,4.16495329,3761.0,3760.9,4.67434]
[1753518408513,3.419,3761.0,3760.9,0.53164]
[1753518409410,3.419,3761.0,3760.9,3.72884]
[1753518409608,3.419,3761.0,3760.9,6.93664]
[1753518412315,3.419,3761.5,3761.4,0.9349]
[1753518412505,4.16464791,3761.5,3761.4,0.93877]
[1753518413210,4.16464791,3761.5,3761.4,0.53157]
[1753518413911,4.16464791,3761.5,3761.4,2.30247]
[1753518414212,4.16464791,3761.5,3761.4,3.72877]
[1753518414603,4.16464791,3761.5,3761.4,3.08777]
[1753518415515,4.16464791,3761.5,3761.4,2.69067]
[1753518415708,4.16464791,3761.5,3761.4,0.53157]
[1753518416921,4.16464791,3761.5,3761.4,1.37767]
[1753518417215,4.16464791,3761.5,3761.4,2.16297]
[1753518417417,4.16464791,3761.5,3761.4,3.72877]
[1753518420221,4.16464791,3761.5,3761.4,1.46647]
[1753518420416,4.16464791,3761.5,3761.4,0.53157]
[1753518422914,4.16464791,3761.5,3761.3,3.2078]
[1753518423111,3.2754,3761.0,3760.9,0.53164]
[1753518423518,3.2754,3761.0,3760.9,2.18984]
[1753518423725,3.2754,3761.0,3760.9,0.53164]
[1753518424018,3.2754,3761.0,3760.9,3.11844]
[1753518424222,0.5795,3761.0,3760.9,3.69304]
[1753518424419,1.7695,3761.2,3761.1,1.88121]
[1753518424623,2.7536,3761.2,3761.1,3.69301]
[1753518425123,3.2754,3761.2,3761.1,0.53161]
[1753518426021,2.07390464,3761.2,3761.0,0.53162]
[1753518426326,3.2754,3761.1,3761.0,0.53162]
[1753518426514,1.3256,3761.1,3760.8,1.2372]
[1753518426719,3.2754,3760.9,3760.8,2.18985]
[1753518426921,3.2754,3760.9,3760.8,2.70485]
[1753518427118,3.2754,3760.9,3760.8,3.11845]
[1753518427514,3.2754,3760.9,3760.8,0.53165]
[1753518428622,1.3256,3760.9,3760.6,3.2078]
[1753518428824,3.2754,3760.7,3760.6,3.73948]
[1753518429029,3.2754,3760.7,3760.6,6.32628]
[1753518429230,3.2754,3760.7,3760.6,6.90088]
[1753518431636,3.2754,3760.7,3760.6,6.32628]
[1753518431833,3.2754,3760.7,3760.6,3.73948]
[1753518432129,3.80707,3760.7,3760.6,3.2078]
[1753518432330,4.5566561,3760.7,3760.6,3.2078]
[1753518432933,2.6068561,3760.7,3760.5,0.53169]
[1753518433234,2.0751861,3760.6,3760.5,0.5317]
[1753518433836,4.0249861,3760.6,3760.5,0.5317]
[1753518434833,2.6618861,3760.6,3760.4,0.5317]
[1753518435037,3.2754,3760.3,3760.2,6.32634]
[1753518435335,4.03518479,3760.3,3760.2,6.32634]
[1753518435936,4.03518479,3760.3,3760.2,6.90094]
[1753518437640,1.9498,3760.6,3760.5,0.5317]
[1753518437841,0.75938451,3760.6,3760.5,3.6931]
[1753518439138,1.3631,3760.9,3760.8,1.46765]
[1753518439442,1.33877584,3760.9,3760.8,6.90085]
[1753518439738,0.75927584,3760.9,3760.8,6.90085]
[1753518439940,3.2754,3761.1,3761.0,3.69303]
[1753518440141,4.03464848,3761.1,3761.0,3.69303]
[1753518441145,4.03464848,3761.1,3761.0,0.53163]
[1753518441745,3.2754,3761.0,3760.9,0.53163]
[1753518441945,2.08484848,3761.0,3760.9,0.53163]
[1753518442245,4.03464848,3761.0,3760.9,0.53163]
[1753518445738,4.03464848,3761.0,3760.9,1.88123]
[1753518445939,4.03464848,3761.0,3760.9,3.69303]
[1753518447242,0.75924848,3761.0,3760.9,3.69303]
[1753518447447,0.5795,3761.4,3761.3,0.53158]
[1753518447643,0.5795,3761.4,3761.3,1.88118]
[1753518447644,2.12240622,3761.4,3761.3,1.88118]
[1753518447849,3.11550622,3761.4,3761.3,3.69298]
[1753518448145,4.03470622,3761.4,3761.3,3.69298]
[1753518449650,3.44800622,3761.4,3761.3,3.69298]
[1753518449951,0.75930622,3761.4,3761.3,3.69298]
[1753518450947,1.37950622,3761.4,3761.3,3.69298]
[1753518451849,0.6202,3761.4,3761.3,3.69298]
[1753518452049,3.5273,3761.9,3761.8,2.63441]
[1753518452348,4.29132843,3761.9,3761.8,3.58721]
[1753518454449,2.29352843,3761.9,3761.7,0.53152]
[1753518454651,4.09132843,3761.8,3761.7,0.53153]
[1753518455051,4.09132843,3761.8,3761.7,3.01863]
[1753518455251,4.09132843,3761.8,3761.7,3.8481636]
[1753518456857,4.09132843,3761.8,3761.7,3.2795636]
[1753518457151,1.79782843,3761.8,3761.7,3.8481636]
[1753518457351,0.8202,3761.9,3761.8,1.85991]
[1753518457545,0.8202,3761.9,3761.8,3.58721]
[1753518457745,2.5042,3761.9,3761.8,3.58721]
[1753518458056,3.5273,3761.9,3761.8,3.58721]
[1753518458848,2.4049,3761.9,3761.8,3.58721]
[1753518459048,0.2,3761.9,3761.8,3.58721]
[1753518459551,0.8202,3761.9,3761.8,3.58721]
[1753518459755,2.4049,3761.9,3761.8,3.58721]
[1753518459955,3.5273,3761.9,3761.8,3.58721]
[1753518460552,2.9178,3761.9,3761.8,3.58721]
[1753518461250,0.2,3761.9,3761.8,3.58721]
[1753518461451,0.6382,3762.3,3762.2,3.58716]
[1753518461751,0.6382,3762.3,3762.2,6.79496]
[1753518462052,1.9978,3763.4,3763.3,1.3168]
[1753518462356,3.59448395,3763.4,3763.3,2.4871]
[1753518462550,3.59448395,3763.4,3763.1,0.53132]
[1753518462748,3.3273,3763.2,3763.1,0.93782]
[1753518463145,3.3273,3763.2,3763.1,3.01842]
[1753518463345,3.3273,3763.2,3763.1,3.58702]
[1753518463751,3.3273,3763.2,3763.1,3.0557]
[1753518463962,3.3273,3763.2,3763.1,1.7233]
[1753518464253,3.3273,3763.2,3763.0,3.2078]
[1753518464254,3.85861,3763.2,3763.0,3.2078]
[1753518464655,3.3273,3763.1,3763.0,0.4065]
[1753518465052,3.85863,3763.1,3763.0,0.4065]
[1753518465253,3.3273,3763.1,3763.0,0.4065]
[1753518465653,3.3273,3763.1,3763.0,6.79484]
[1753518465858,0.6202,3763.1,3763.0,6.79484]
[1753518466056,1.3776,3763.4,3763.3,0.5313]
[1753518466255,3.3273,3763.4,3763.3,3.587]
[1753518466560,3.3273,3763.7,3763.6,3.58695]
[1753518466755,3.3273,3763.7,3763.6,3.0557]
[1753518466953,3.3273,3763.7,3762.9,1.5128]
[1753518466954,1.3295,3763.0,3762.9,1.5128]
[1753518467148,0.6202,3763.4,3763.3,3.587]
[1753518467355,2.7178,3763.7,3763.6,3.58696]
[1753518467651,0.2,3763.9,3763.8,3.58693]
[1753518467959,3.3273,3764.0,3763.9,3.58692]
[1753518468255,3.2078,3765.2,3764.2,1.3284]
[1753518468559,3.2078,3765.2,3763.6,1.32814]
[1753518468560,4.34208393,3765.1,3765.0,3.0557]
[1753518468765,4.87307437,3765.1,3765.0,3.0557]
[1753518468956,1.3295,3764.7,3764.6,1.3391]
[1753518469149,3.58243939,3764.7,3764.6,3.58682]
[1753518469355,0.25513939,3764.7,3764.6,3.58682]
[1753518469553,2.96223939,3764.7,3764.6,3.0557]
[1753518469758,3.3273,3764.7,3764.6,3.58682]
[1753518469958,3.3273,3764.7,3764.6,3.0557]
[1753518470151,3.2078,3765.2,3764.6,3.0557]
[1753518470152,0.7681,3765.2,3764.6,1.3284]
[1753518470363,3.3453,3765.3,3765.2,3.0557]
[1753518470566,3.60009696,3765.3,3765.2,3.0557]
[1753518470862,3.60009696,3765.3,3765.2,2.1029]
[1753518471061,3.60009696,3765.3,3765.2,2.4871]
[1753518471259,3.60009696,3765.3,3765.2,3.58673]
[1753518471462,0.27279696,3765.3,3765.2,3.58673]
[1753518471858,0.27279696,3765.3,3765.2,3.0557]
[1753518472054,3.60009696,3765.3,3765.2,2.4871]
[1753518472261,1.3295,3765.1,3765.0,0.3949]
[1753518472463,3.3273,3765.1,3765.0,3.01816]
[1753518472962,3.3273,3765.1,3765.0,2.4871]
[1753518473167,3.85835,3765.1,3765.0,0.9442]
[1753518473462,1.9978,3765.0,3764.7,4.3665]
[1753518473670,3.3273,3764.8,3764.7,5.6949]
[1753518473963,1.44702,3764.6,3764.2,3.592]
[1753518474170,1.3295,3764.3,3764.2,6.79467]
[1753518474468,3.3273,3764.3,3764.2,6.2635]
[1753518475064,3.3273,3764.3,3764.2,6.79467]
[1753518475261,1.4368,3764.3,3764.2,6.79467]
[1753518475468,3.3273,3764.3,3764.2,6.79467]
[1753518476572,3.3273,3764.3,3764.2,3.2078]
[1753518476770,3.85846,3764.3,3764.2,3.2078]
[1753518478166,1.32766,3765.0,3763.6,4.5362]
[1753518478167,3.3273,3763.7,3763.6,4.5362]
[1753518478367,3.3273,3763.7,3763.6,3.2078]
[1753518478566,3.3273,3763.7,3763.6,6.2635]
[1753518479070,3.3273,3763.7,3763.6,5.6949]
[1753518480670,3.85854,3763.7,3763.6,3.2078]
[1753518480970,3.3273,3763.7,3763.6,6.18876]
[1753518481164,3.3273,3763.7,3763.6,5.6575]
[1753518481565,3.3273,3763.7,3763.6,6.18876]
[1753518488074,4.08738336,3763.7,3763.6,6.18876]
[1753518488273,4.08738336,3763.7,3763.6,4.13516]
[1753518488663,4.61862336,3763.7,3763.6,3.2078]
[1753518488868,1.3086,3763.5,3763.4,0.53127]
[1753518489064,4.02403627,3763.5,3763.4,0.53127]
[1753518489574,3.2635,3763.3,3763.2,3.73911]
[1753518490072,4.02451032,3763.3,3763.2,5.00531]
[1753518490270,1.3448,3763.6,3763.5,0.53127]
[1753518490470,2.6534,3764.1,3764.0,3.7326]
[1753518490675,2.6534,3764.1,3764.0,6.9404]
[1753518490867,3.18459,3764.1,3764.0,4.1612]
[1753518491263,3.18459,3764.1,3764.0,0.9534]
[1753518491571,3.18459,3764.1,3764.0,3.7326]
[1753518491572,2.6534,3764.1,3764.0,3.7326]
[1753518491974,0.9041,3764.1,3764.0,6.9404]
[1753518492470,3.2635,3764.1,3764.0,6.4092]
[1753518492670,3.2635,3764.1,3764.0,4.1612]
[1753518492871,1.3086,3763.8,3763.7,0.9534]
[1753518493073,3.2635,3763.8,3763.7,0.9534]
[1753518493472,3.2635,3763.8,3763.7,1.45]
[1753518493869,3.2635,3763.8,3763.7,1.98124]
[1753518494074,3.2635,3763.8,3763.7,1.45]
[1753518494376,3.2635,3763.8,3763.7,1.98124]
[1753518495079,3.2635,3763.8,3763.7,2.37134]
[1753518495577,3.2635,3763.8,3763.7,0.5573]
[1753518495778,3.79473,3763.8,3763.5,1.89256]
[1753518495973,1.9549,3763.7,3763.6,1.08855]
[1753518496181,3.2635,3763.7,3763.6,1.08855]
[1753518497579,3.2635,3763.7,3763.6,0.9534]
[1753518497779,2.6534,3763.7,3763.6,3.73266]
[1753518498282,0.9041,3763.7,3763.6,3.73266]
[1753518499283,1.5084,3763.7,3763.6,3.73266]